Cogmind - Beta 13 @@@ ROGUE MODE // 2024.03.17 @ 21:06:02 Player: ChromeKnight Result: Destroyed by 0N-DGA(R) with Subdweller Beam Cannon Performance ------------- Evolutions (0) 0 Regions Visited (3) 600 Robots Destroyed (7) 35 Value Destroyed (152) 152 Prototype IDs (0) 0 Alien Tech Used (0) 0 Bonus (0) 0 TOTAL SCORE: 787 Bonus ------- None Cogmind --------- Core Integrity 0/250 Matter 300/300 Energy 100/100 System Corruption 0% Temperature Cool (10) Movement Flying (55) Location -10/Subcaves Parts ------- > --- POWER (1) -------- (None) > --- PROPULSION (2) --- Makeshift Flight Unit > --- UTILITY (2) ------ Small Storage Unit > --- WEAPON (2) ------- Mace > --- INVENTORY (8) ---- Improved Ion Engine Subdweller Shrapnel Launcher Multitool Mace Mace Mace Shrapnel Trap Shrapnel Trap Peak State ------------ > --- POWER ------------ Improved Ion Engine > --- PROPULSION ------- Light Treads Light Treads > --- UTILITY ---------- Small Storage Unit Light Armor Plating > --- WEAPON ----------- Particle Cannon > --- INVENTORY -------- Improved Ion Engine Improved Ion Engine Particle Cannon Particle Cannon Mace Mace Mace Mace [Rating: 9] Favorites ----------- Power Improved Ion Engine Engine Improved Ion Engine Propulsion Light Treads Treads Light Treads Flight Unit Makeshift Flight Unit Utility Small Storage Unit Device Seismic Detector Storage Small Storage Unit Protection Light Armor Plating Weapon EM Pulse Gun Energy Gun EM Pulse Gun Energy Cannon Particle Cannon Ballistic Gun Assault Rifle Impact Weapon Mace Build | -11 -10 -10 -10 ------- Run | Yrd Mat Min Sub Slots Evolved . | . . . . Power . | . . . . Propulsion . | . . . . Utility . | . . . . Weapon . | . . . . Parts Attached 13 | 7 4 . 2 Power 2 | 1 1 . . Engine 2 | 1 1 . . Core . | . . . . Reactor . | . . . . Propulsion 3 | 2 . . 1 Treads 2 | 2 . . . Leg . | . . . . Wheel . | . . . . Hover . | . . . . Flight 1 | . . . 1 Utility 3 | 1 2 . . Device 1 | . 1 . . Storage 1 | 1 . . . Processor . | . . . . Hackware . | . . . . Protection 1 | . 1 . . Artifact . | . . . . Weapon 5 | 3 1 . 1 Energy Gun 2 | 2 . . . Energy Cannon 1 | . 1 . . Ballistic Gun 1 | 1 . . . Ballistic Cannon . | . . . . Launcher . | . . . . Special Weapon . | . . . . Impact Weapon 1 | . . . 1 Slashing Weapon . | . . . . Piercing Weapon . | . . . . Special Melee Weapon . | . . . . Unidentified Prototypes . | . . . . Parts Lost 6 | . 6 . . Power 1 | . 1 . . Propulsion 2 | . 2 . . Utility 1 | . 1 . . Weapon 2 | . 2 . . Highest Loss Streak 5 | . 5 . . To Critical Strikes . | . . . . Average Slot Usage (%) 57 | . 84 14 32 Engine 7 | . 13 . . Treads 14 | . 26 . . Flight 2 | . . . 9 Device 2 | . 4 . . Storage 14 | . 14 14 14 Protection 4 | . 7 . . Energy Gun 4 | . 7 . . Energy Cannon 4 | . 9 . . Impact Weapon 2 | . . . 9 Naked Turns . | . . . . Heaviest Build 19 | 12 19 5 7 Greatest Support 40 | 40 40 3 8 Greatest Overweight (x) 5 | 1 5 1 1 Average Overweight (x) . | . . 1 . Largest Inventory Capacity 8 | 8 8 8 8 Average Capacity 7 | 7 8 8 8 Most Carried 8 | 1 8 8 8 Average Carried 6 | . 5 8 7 Final Capacity 8 | 8 8 8 8 Final Carried 8 | 1 8 8 8 Class Distribution -------------------- 100% | Mutant Dominant Class ---------------- Mutant | -10/Materials Mutant | -10/Mines Mutant | -10/Subcaves Resources | -11 -10 -10 -10 ----------- Run | Yrd Mat Min Sub Matter Collected 345 | 231 44 . 70 Remotely . | . . . . Salvage Created 211 | 30 181 . . Parts 19 | 5 14 . . Haulers Intercepted . | . . . . Recyclers Shooed 2 | . 2 . . Parts Field Recycled . | . . . . Retrieved Matter . | . . . . Parts Self-Destructed 3 | . . . 3 Prevented . | . . . . Kills | -11 -10 -10 -10 ------- Run | Yrd Mat Min Sub Combat Hostiles Destroyed 6 | . 6 . . Guns 6 | . 6 . . Classes Destroyed 3 | 1 2 . . Tunneler 1 | 1 . . . Swarmer 3 | . 3 . . Grunt 3 | . 3 . . Best Kill Streak 3 | 1 3 . . Combat Bots Only 3 | . 3 . . Max Kills in Single Turn 1 | 1 1 . . Gunslinging . | . . . . Exploded . | . . . . Melee . | . . . . Uniques/NPCs Destroyed . | . . . . Combat | -11 -10 -10 -10 -------- Run | Yrd Mat Min Sub Hostile Shots Fired 109 | . 106 . 3 Missed 23 | . 21 . 2 Damage Taken 1059 | . 1029 . 30 Core 262 | . 232 . 30 Absorbed by Shields . | . . . . Core Remaining (%) 100 | 100 . . . Volleys Fired 40 | 2 38 . . Largest 2 | 2 2 . . Hottest 80 | 80 80 . . Shots Fired 47 | 4 43 . . Gun 35 | 4 31 . . Cannon 12 | . 12 . . Launcher . | . . . . Special . | . . . . Kinetic . | . . . . Thermal 12 | . 12 . . Explosive . | . . . . Electromagnetic 35 | 4 31 . . Robot Hit Streak 6 | 2 6 . . Robot Miss Streak 5 | 1 5 . . Penetration Max . | . . . . Secondary Targets . | . . . . Shots Hit Robots 28 | 3 25 . . Core Hits 14 | 1 13 . . Critical Kills . | . . . . Critical Parts Destroyed . | . . . . Critical Strikes 1 | . 1 . . Corrupt 1 | . 1 . . Melee Attacks 5 | . . . 5 Impact 5 | . . . 5 Slashing . | . . . . Piercing . | . . . . Sneak Attacks . | . . . . Combat Hostiles . | . . . . Follow-up Attacks . | . . . . Damage Inflicted 478 | 40 438 . . Guns 293 | 40 253 . . Cannons 185 | . 185 . . Explosions . | . . . . Melee . | . . . . Ramming . | . . . . Kinetic . | . . . . Thermal 185 | . 185 . . Explosive . | . . . . Electromagnetic 293 | 40 253 . . Impact . | . . . . Slashing . | . . . . Piercing . | . . . . Highest Corruption . | . . . . Average Corruption . | . . . . Corruption Purged . | . . . . Corruption Blocked . | . . . . Overload Shots . | . . . . Overflow Damage . | . . . . Projectiles . | . . . . Explosions . | . . . . Melee . | . . . . Knockbacks . | . . . . Impact . | . . . . Kinetic . | . . . . Secondary . | . . . . Self-Inflicted Damage . | . . . . Shots . | . . . . Rammed . | . . . . Targets Rammed . | . . . . Kicked . | . . . . Crushed . | . . . . Highest Temperature 363 | 36 363 . . Average Temperature 144 | 20 151 . . Received Heat Transfer 561 | . 552 . 9 Effects 2 | . 2 . . Energy Bleed 1 | . 1 . . Matter Decay 1 | . 1 . . Siege Activations . | . . . . Robots Corrupted . | . . . . Combat Hostiles . | . . . . Parts Fried 1 | . 1 . . Impact Corruptions . | . . . . Robots Melted . | . . . . Combat Hostiles . | . . . . Parts Melted . | . . . . Heat Transferred 333 | . 333 . . Parts Sabotaged . | . . . . Parts Stolen . | . . . . Parts Stripped . | . . . . Power Chain Reactions . | . . . . Alert | -11 -10 -10 -10 ------- Run | Yrd Mat Min Sub Peak Influence 155 | 5 155 . . Initial 3 | . 3 . . Average 33 | 1 49 . . Maximum Alert Level . | . . . . Low Security (%) 100 | 100 100 100 . Level 1 . | . . . . Level 2 . | . . . . Level 3 . | . . . . Level 4 . | . . . . Level 5 . | . . . . High Security . | . . . . Max Security . | . . . . Squads Dispatched 1 | . 1 . . Investigation . | . . . . Extermination . | . . . . Reinforcement 1 | . 1 . . Assault . | . . . . Garrison . | . . . . Intercept . | . . . . Searches Triggered . | . . . . Construction Impeded . | . . . . Haulers Reinforced . | . . . . Active Scanning Responses . | . . . . Cargo Convoy Interrupts . | . . . . Stealth | -11 -10 -10 -10 --------- Run | Yrd Mat Min Sub Distress Signals 2 | . 2 . . Communications Jammed . | . . . . Distress Signals . | . . . . Times Spotted 19 | . 16 . 3 Peak Tracking Total 5 | . 5 . 2 Tactical Retreats 1 | . . . 1 Traps | -11 -10 -10 -10 ------- Run | Yrd Mat Min Sub Traps Triggered . | . . . . Indirectly . | . . . . Trap Hack Attempts . | . . . . Triggered . | . . . . Disarmed . | . . . . Reprogrammed . | . . . . Reused . | . . . . Traps Extracted . | . . . . Installed . | . . . . Triggered 2 | . . . 2 Most Traps Carried 2 | . . . 2 Machines | -11 -10 -10 -10 ---------- Run | Yrd Mat Min Sub Machines Disabled . | . . . . Max in Single Turn . | . . . . Machines Repaired . | . . . . Machines Dismantled . | . . . . Machines Sabotaged . | . . . . Overloaded Fab Kills . | . . . . Hacking | -11 -10 -10 -10 --------- Run | Yrd Mat Min Sub Machines Accessed 2 | . 2 . . Terminals 2 | . 2 . . Fabricators . | . . . . Repair Stations . | . . . . Recycling Units . | . . . . Scanalyzers . | . . . . Garrison Access . | . . . . Total Hacks 5 | . 5 . . Successful . | . . . . Failed 5 | . 5 . . Catastrophic 3 | . 3 . . Database Lockouts . | . . . . Manual 5 | . 5 . . Terminals 5 | . 5 . . Fabricators . | . . . . Repair Stations . | . . . . Recycling Units . | . . . . Scanalyzers . | . . . . Garrison Access . | . . . . Terminal Hacks . | . . . . Fabricator Hacks . | . . . . Repair Station Hacks . | . . . . Recycling Unit Hacks . | . . . . Scanalyzer . | . . . . Garrison Access Hacks . | . . . . Unauthorized Hacks . | . . . . Terminals . | . . . . Fabricators . | . . . . Repair Stations . | . . . . Recycling Units . | . . . . Scanalyzers . | . . . . Garrison Access . | . . . . Data Cores Recovered . | . . . . Used . | . . . . Hacking Detections 2 | . 2 . . Full Trace Events 2 | . 2 . . Feedback Events . | . . . . Feedback Blocked . | . . . . Robot Schematics Acquired . | . . . . Robots Built . | . . . . Authchips . | . . . . Time . | . . . . Total Robot Build Rating . | . . . . Part Schematics Acquired . | . . . . Parts Built . | . . . . Authchips . | . . . . Time . | . . . . Total Part Build Rating . | . . . . Parts Repaired . | . . . . Time . | . . . . Parts Recycled . | . . . . Recycled Matter . | . . . . Retrieved Matter . | . . . . Retrieved Components . | . . . . Parts Scanalyzed . | . . . . Part Schematics Acquired . | . . . . Parts Damaged . | . . . . Bothacking | -11 -10 -10 -10 ------------ Run | Yrd Mat Min Sub Used RIF Installer . | . . . . Robots Hacked . | . . . . Non-combat . | . . . . Combat . | . . . . Robot Hacks Applied . | . . . . Relay Couplers Released . | . . . . Fabnet Peak Effective % . | . . . . Robots Rewired . | . . . . Allies Hacked . | . . . . Hacks Repelled . | . . . . Allies | -11 -10 -10 -10 -------- Run | Yrd Mat Min Sub Total Allies 1 | . . 1 . Largest Group 1 | . . 1 1 Highest-Rated Group 31 | . . 31 31 Highest-Rated Ally 31 | . . 31 31 Total Orders . | . . . . Ally Attacks . | . . . . Total Damage . | . . . . Kills . | . . . . Allies Corrupted . | . . . . Allies Melted . | . . . . Intel | -11 -10 -10 -10 ------- Run | Yrd Mat Min Sub Robot Analysis Total . | . . . . Derelict Logs Recovered . | . . . . Drone Launches . | . . . . Drone Recoveries . | . . . . Exploration | -11 -10 -10 -10 ------------- Run | Yrd Mat Min Sub Turns Passed 1373 | 86 700 244 343 Spaces Moved 575 | 52 184 10 329 Core 157 | 14 20 10 113 Treads 202 | 38 164 . . Legs . | . . . . Wheels . | . . . . Hover . | . . . . Flight 216 | . . . 216 Fastest Speed 50 | 50 100 100 55 Average Speed 105 | 131 162 100 70 Slowest Speed 300 | 160 300 100 100 Overloaded Moves . | . . . . Propulsion Burnouts . | . . . . Robots Hopped . | . . . . Cave-ins Triggered . | . . . . Exploration Rate (%) 15 | 4 36 3 19 Regions Visited 3 Branch Regions 2 Pre-discovered Areas 1 | . . . 1 Known Exits Taken . | . . . . Unknown Exits Taken 3 | 1 1 1 . Scrap Searched 4 | . . . 4 Spaces Dug 2 | . . . 2 Terrain Destroyed 2 | . . . 2 Melee 2 | . . . 2 Projectile . | . . . . AOE . | . . . . Terrain Rammed . | . . . . Walls Destroyed . | . . . . Machines Disabled . | . . . . Actions | -11 -10 -10 -10 --------- Run | Yrd Mat Min Sub Total 1282 | 63 543 244 432 Wait 627 | . 303 235 89 Move 572 | 51 183 9 329 Hop . | . . . . Pick Up 16 | 2 10 . 4 Fast Attach 9 | 6 2 . 1 Attach 2 | . 1 . 1 Detach . | . . . . Swap 2 | 1 1 . . Drop 9 | 1 5 . 3 Fire 40 | 2 38 . . Melee 5 | . . . 5 Ram . | . . . . Kick . | . . . . Crush . | . . . . Escape Stasis . | . . . . Rewire . | . . . . Trap . | . . . . Miscellaneous . | . . . . Route ------- -11/Scrapyard -10/Materials (discovered 2 exits: [*Mat] / [*Min]) -10/Mines -10/Subcaves (discovered 1 exit: [*Mat]) History --------- Turn | Location | Event 2 | -11/Scrapyard | Met Revision 17 9 | -11/Scrapyard | Discovered new exit (range 16) 87 | -11/Scrapyard | Entered Materials 375 | -10/Materials | Build established: Mutant 375 | -10/Materials | Discovered new exit (range 16) 747 | -10/Materials | Core integrity fell below 50% 773 | -10/Materials | Discovered new exit (range 13) 780 | -10/Materials | Core integrity fell below 20% 787 | -10/Materials | Entered Mines 790 | -10/Mines | Received a Mining Laser from a helpful Derelict 807 | -10/Mines | Lost 5 parts (1p2n1u1w) 1026 | -10/Mines | Discovered new exit (range 6) 1031 | -10/Mines | Entered Subcaves 1031 | -10/Subcaves | Accompanied by 1 ally 1096 | -10/Subcaves | Learned location of Zion (-7) 1096 | -10/Subcaves | Met a Zionite searching for "candidates" 1371 | -10/Subcaves | Discovered new exit (range 9) 1374 | -10/Subcaves | Destroyed by 0N-DGA(R) with Subdweller Beam Cannon Last Messages --------------- 01138_ Found 38 Matter. 01139_ Searching scrap... 01139_ Found Flamer. 01139_ Found Mak. Flight Unit. 01139_ Found 28 Matter. 01140_ Searching scrap... 01140_ Found Shrapnel Trap. 01140_ Found Sub. Monowheel. 01140_ Found 31 Matter. 01144_ Acquired Mak. Flight Unit. 01147_ Dropped Particle Cannon. 01149_ Acquired Multitool. 01150_ Acquired 7 matter. 01151_ Acquired 12 matter. 01165_ Acquired Shrapnel Trap. 01171_ Acquired 1 matter. 01175_ Dropped Imp. Ion Engine. 01175_ Acquired Sub. Shrapnel Launcher. 01210_ SQ-BAR(O) collects matter. 01371_ EXIT=FOUND Map ----- +----------------------------------------------------+ | ?????????????????????????????????????????????????? | | ?????????????????????????????????????????????????? | | ?????????????????????????????????????????????????? | | ?????????????????????????????????????????????????? | | ?????????????????????????????????????????????????? | | ?????????????????????????????????????????????????? | | ?????????????????????????????????????????????????? | | ?????????????????????????????????????????????????? | | ?????????????????????????????????????????????????? | | ?????????????????????????????????????????????????? | | ?????????????????????????????????????????????????? | | ?????????????????????????????????????????????????? | | ?????????????????????????????????????????????????? | | ?????????????????????????????????????????????????? | | ??????????????????????????#??????????????????????? | | ????????????????????????#" ??????????????????????? | | ????????????????????????" ??????????????????????? | | ???????????????????????? ??????????????????????? | | ???????????????????????""""??????????????????????? | | ???????????????????????#" "??????????????????????? | | ???????????????????????#"""??????????????????????? | | ???????????????????????""<"???"??????????????????? | | ???????????????????????# #?"""??????????????????? | | ???????????????????##### ##""#??????????????????? | | ???????????????????# """"#??##???"""????????? | | ???????????????????# @"""#??? #? """????????? | | ???????????????????# "##??? ## """"??????? | | ???????????????????##"""" " ###?? """"#?????? | | ???????????????######" " ##? ??????? | | ???????????????# " "#?# #????????? | | ???????????????## ### #???##???? | | ????????????????## ### """##?# #???? | | ?????????????????## #??## R """ ## #???? | | ????????############????## """ #???? | | ???????## ######??### " " #????? | | ???????# #"#????##"### #????? | | ??????## #??????###?#" ##????? | | #####?# ## ####?????????### #?????? | | # ### ###"# ##???###????## ##?????? | | ##" ##### #?????# #??????? | | ## ## #????## #??????? | | ### ### ##???# ##?????? | | ####"" #?## #???## ##????? | | #??#" #?## #????## % #????? | | #?##"" ##?# ###?### #????? | | ""#?### #??# ### ##????? | | "##???#" #??## % ## ## ##?????? | | ##????" ??## ### ##??????? | | ????? ##??####% ##?# ##???????? | | ????? ####??????## #??# ##????????? | +----------------------------------------------------+ Best States ------------- Heat Dissipation 25 Energy Generation 12 Energy Capacity 265 Matter Stores 300 Matter Capacity 300 Sight Range 16 Terrain Scan Density 10 Armor Coverage 150 Evasion (%) 59 Recoil Reduction 2 Item Schematics ----------------- None Robot Schematics ------------------ None Fabricated ------------ Nothing Alien Tech Used ----------------- None Achievements -------------- None Challenges ------------ None Game ------ Seed ArchitectRestorationCoupler Manual? 0 Play Time 00:08:40 Cumulative 439.8 hours Start 2024.03.17 @ 20:58:41 End 2024.03.17 @ 21:06:02 Sessions 1 Manual Loads 0 Difficulty Rogue Special Mode None Game No. 766 Rogue 611 Adventurer 148 Explorer 7 Win Type - Total 19 Types 16/0/2/1/0/0/0/0/0 Lore% 77 Gallery% 88 Achievement% 73 Wizard Run 0 Options --------- Layout 1 ASCII 0 Keyboard 0 Movement Numpad Keybinds 0 Fullscreen 2 Font 24/Smallcaps Map View 50x35 Zoom Use 0% Tactical HUD 1 Map Filters NONE Filters NONE Steam 1 RUN: 93a7dc5b-63a9-4e90-9352-327f7fd108ca